bitfinex/quotes_ETHUSD_20240819
["timestamp","ask_amount","ask_price","bid_price","bid_amount"]
[1724038925034,18.92176887,2648.6,2648.5,7.5835]
[1724038925606,18.92176887,2648.6,2648.5,8.1335]
[1724038927090,18.92176887,2649.1,2648.7,2.64277]
[1724038927448,18.92176887,2649.0,2648.7,2.64277]
[1724038927930,18.92176887,2649.0,2648.7,5.28548]
[1724038928133,18.92176887,2649.0,2648.7,2.64274]
[1724038932999,18.92176887,2648.9,2648.7,2.64274]
[1724038933242,20.91142176,2648.9,2648.7,2.64274]
[1724038933397,18.92176887,2648.9,2648.7,2.64274]
[1724038939137,18.92176887,2648.8,2648.7,2.64274]
[1724038946166,18.92176887,2648.8,2648.5,9.73637]
[1724038946334,18.92176887,2648.8,2648.6,2.64288]
[1724038948656,18.92176887,2648.8,2648.6,5.28572]
[1724038948969,18.92176887,2648.8,2648.6,5.28568]
[1724038949123,18.92176887,2648.8,2648.6,2.64284]
[1724038950267,18.92176887,2648.8,2648.5,4.4505]
[1724038950268,18.92176887,2648.8,2648.7,2.6428]
[1724038950862,18.92176887,2649.1,2648.7,2.6428]
[1724038951171,18.92176887,2649.1,2648.7,2.64273]
[1724038952777,20.90417208,2649.1,2648.7,2.64273]
[1724038955337,23.98782129,2649.1,2648.7,2.64273]
[1724038955648,23.98918482,2649.1,2648.7,2.64273]
[1724038956883,18.92176887,2649.0,2648.7,2.64273]
[1724038958677,18.92176887,2649.0,2648.8,2.3454]
[1724038958993,18.92176887,2649.0,2648.9,2.6426]
[1724038961763,19.02652184,2649.0,2648.9,2.6426]
[1724038962996,0.10475297,2649.0,2648.9,2.6426]
[1724038963415,20.9053491,2649.3,2649.0,2.64243]
[1724038963933,18.92176887,2649.3,2649.0,2.64243]
[1724038965271,0.10145343,2649.2,2649.1,2.6424]
[1724038965470,1.98358023,2649.4,2649.2,2.6423]
[1724038965672,12.14,2650.0,2649.2,2.6423]
[1724038965673,1.98358023,2650.2,2650.1,2.6414]
[1724038965872,1.98358023,2650.2,2650.0,1.603]
[1724038965873,0.08218893,2650.2,2650.0,1.603]
[1724038966102,0.1271751,2650.4,2649.9,4.8978]
[1724038966322,0.08228071,2650.3,2649.9,4.8978]
[1724038966771,0.08228071,2650.3,2649.9,4.89773]
[1724038968739,0.08228071,2650.3,2649.9,7.53926]
[1724038969148,0.08228071,2650.3,2650.0,2.64148]
[1724038969756,0.08228071,2650.3,2650.1,2.64138]
[1724038969896,0.08228071,2650.3,2649.9,5.547803]
[1724038970093,0.08228071,2650.3,2649.7,2.64177]
[1724038970094,2.3802,2650.2,2649.7,2.64177]
[1724038970347,0.08216452,2650.1,2649.7,2.64177]
[1724038971743,18.92176887,2650.0,2649.7,2.64177]
[1724038971901,0.08207171,2649.9,2649.7,2.64177]
[1724038972908,0.08207171,2649.9,2649.7,2.64173]
[1724038973250,0.08207171,2649.9,2649.8,2.6417]
[1724038973591,0.08207171,2649.9,2649.6,1.603]
[1724038973592,0.08207171,2649.9,2649.6,4.24483]
[1724038974614,0.08207171,2649.9,2649.7,2.64179]
[1724038976327,0.08207171,2649.9,2649.8,2.6417]
[1724038976535,0.08207171,2649.9,2649.7,2.64179]
[1724038977706,19.00384058,2649.9,2649.7,2.64179]
[1724038978267,19.00384058,2649.9,2649.8,2.6417]
[1724038979153,19.00384058,2649.9,2649.4,2.3118]
[1724038979154,1.98245577,2649.9,2649.4,2.3118]
[1724038979479,2.2852,2649.8,2649.3,2.64215]
[1724038979868,0.0821107,2649.7,2649.3,2.64215]
[1724038980203,1.97352129,2650.3,2649.6,2.4182]
[1724038980389,2.5314751,2650.4,2649.9,1.603]
[1724038980682,2.5314751,2650.4,2650.0,2.64149]
[1724038980683,0.25314751,2650.3,2650.0,2.64149]
[1724038982404,0.25314751,2650.3,2650.0,2.64144]
[1724038982770,0.1271751,2650.4,2650.3,2.64121]
[1724038983250,0.20414203,2650.4,2650.3,2.64121]
[1724038987683,0.20414203,2650.4,2650.3,9.29312]
[1724038989281,0.20414203,2650.4,2650.3,10.48657]
[1724038991569,0.20414203,2650.4,2650.3,9.29312]
[1724038995815,0.20414203,2650.4,2650.3,5.28242]
[1724038996017,0.20414203,2650.4,2650.3,6.88542]
[1724039001649,0.20414203,2650.4,2650.3,5.28242]
[1724039002973,0.20414203,2650.4,2650.3,7.69662]
[1724039003144,0.20414203,2650.4,2650.3,8.855472]
[1724039005245,0.20414203,2650.4,2650.3,7.69662]
[1724039018993,0.20414203,2650.4,2650.3,5.28242]
[1724039020218,0.20414203,2650.4,2650.3,2.64121]
[1724039020924,4.06894203,2650.4,2649.9,2.64156]
[1724039021089,4.06894203,2650.4,2649.6,2.64189]
[1724039021090,1.603,2650.2,2649.6,2.64189]
[1724039021290,2.6686942,2650.3,2649.3,2.2996]
[1724039021291,2.2618,2649.9,2649.4,2.6421]
[1724039021544,2.2618,2649.9,2649.5,2.64193]
[1724039021840,2.2618,2649.9,2649.6,2.64189]
[1724039022131,2.2618,2649.9,2649.5,2.64193]
[1724039022430,2.48798,2649.9,2649.5,2.64193]
[1724039022988,2.48798,2649.9,2649.5,5.28386]
[1724039023230,4.38866345,2650.2,2649.6,2.6419]
[1724039023511,7.02998345,2650.2,2649.5,4.95673]
[1724039023990,2.64142,2650.1,2649.5,4.95673]
[1724039024200,0.70300835,2650.0,2649.5,4.95673]
[1724039024991,0.07414614,2649.9,2649.5,4.95673]
[1724039026299,0.07414614,2649.9,2649.5,4.95676]
[1724039026518,0.07414614,2649.9,2649.7,2.64174]
[1724039026809,2.3007,2650.2,2649.7,2.64174]
[1724039026810,0.07415424,2649.8,2649.7,2.64174]
[1724039027158,0.494195,2650.1,2649.7,2.64174]
[1724039027363,0.07429816,2650.0,2649.7,2.64174]
[1724039030005,2.3007,2650.2,2649.7,2.64174]
[1724039030178,0.07423495,2649.9,2649.7,5.28348]
[1724039030380,2.3007,2650.2,2649.7,2.64174]
[1724039030589,0.07431857,2650.1,2649.7,2.64174]
[1724039030790,0.07431857,2650.1,2649.7,5.28348]
[1724039030976,0.07431857,2650.1,2649.7,2.64174]
[1724039032218,0.07431857,2650.1,2649.7,2.64173]
[1724039032595,2.64125,2650.3,2649.7,2.64173]
[1724039032802,0.07439604,2650.2,2649.7,2.64173]
[1724039033187,0.07439604,2650.2,2649.8,2.64167]
[1724039033519,1.13702597,2650.3,2649.8,2.64167]
[1724039033815,0.07436136,2650.1,2649.8,2.64167]
[1724039033978,0.07442456,2650.2,2649.8,2.64167]
[1724039034312,1.13702597,2650.3,2649.8,2.64167]
[1724039034313,3.77825597,2650.3,2649.8,2.64167]
[1724039034521,0.07436136,2650.1,2649.8,2.64167]
[1724039034726,0.07442456,2650.2,2649.8,2.64167]
[1724039034880,0.07429815,2650.0,2649.8,2.64167]
[1724039035086,3.77825597,2650.3,2649.8,2.64167]
[1724039035433,0.07442456,2650.2,2649.8,2.64167]
[1724039035936,1.7301751,2650.4,2649.9,2.64159]
[1724039036132,0.07436136,2650.1,2649.9,2.64159]
[1724039036295,0.1271751,2650.4,2649.9,2.64159]
[1724039036486,0.07422645,2650.0,2649.9,2.64159]
[1724039036687,0.07422645,2650.0,2649.9,3.557356]
[1724039036883,0.1271751,2650.4,2649.9,3.557356]
[1724039037130,0.07422835,2650.0,2649.9,2.64159]
[1724039037334,18.92176887,2650.3,2650.0,2.64144]
[1724039037486,0.1271751,2650.4,2650.1,2.6414]
[1724039037487,18.92176887,2650.2,2650.1,2.6414]
[1724039040696,18.92176887,2650.2,2649.9,2.64159]
[1724039041144,0.07419816,2650.1,2649.9,2.64159]
[1724039041700,0.07419816,2650.1,2650.0,2.6415]
[1724039041900,0.07419816,2650.1,2650.0,5.692809]
[1724039042361,0.07419816,2650.1,2649.9,2.64154]
[1724039045651,0.07419816,2650.1,2649.7,2.64177]
[1724039047156,0.07419816,2650.1,2649.7,5.28351]
[1724039047309,0.07419816,2650.1,2649.7,2.64174]
[1724039047517,0.07419816,2650.1,2649.7,5.28348]
[1724039047931,0.07419816,2650.1,2649.7,2.64174]
[1724039048158,2.21790486,2650.1,2649.7,2.64174]
[1724039049181,2.21790486,2650.1,2649.5,2.64193]
[1724039049182,23.78108373,2650.1,2649.5,2.64193]
[1724039049345,2.2734,2650.0,2649.5,2.64193]
[1724039049511,18.99596703,2650.1,2649.6,2.6419]
[1724039049512,0.07401713,2649.9,2649.6,2.6419]
[1724039049933,21.24579357,2650.1,2649.6,2.6419]
[1724039050234,0.07395391,2649.8,2649.6,2.6419]
[1724039050428,21.24579357,2650.1,2649.6,2.6419]
[1724039050647,0.07389068,2649.7,2649.6,2.6419]
[1724039050843,18.92176887,2650.0,2649.7,2.64179]
[1724039051045,18.92176887,2650.0,2649.3,3.0]
[1724039051046,18.92176887,2650.0,2649.9,2.6416]
[1724039051247,18.92176887,2650.0,2649.9,5.2832]
[1724039051536,18.92176887,2650.0,2649.9,6.22049]
[1724039053457,18.9959511,2650.0,2649.9,6.22049]
[1724039054936,0.07418223,2650.0,2649.9,6.22049]
[1724039055276,0.1271751,2650.4,2650.2,2.6413]
[1724039057074,0.07437184,2650.3,2650.2,2.6413]
[1724039062561,0.07437184,2650.3,2650.2,10.49372]
[1724039062775,0.07437184,2650.3,2650.2,12.75571]
[1724039063422,0.07437184,2650.3,2650.2,16.70937743]
[1724039063706,0.07437184,2650.3,2650.2,18.67780767]
[1724039063884,0.07437184,2650.3,2650.2,19.87979181]
[1724039064088,0.07437184,2650.3,2650.2,22.06504521]
[1724039064274,0.07198197,2650.3,2650.2,22.06504521]
[1724039064460,0.07198197,2650.3,2650.2,24.70635521]
[1724039064799,0.1271751,2650.4,2650.3,10.26013]
[1724039064998,0.1271751,2650.4,2650.3,19.68166396]
[1724039065916,0.1271751,2650.4,2650.3,22.32287396]
[1724039066122,0.1271751,2650.4,2650.3,22.32243892]
[1724039067171,0.1271751,2650.4,2650.3,20.35422734]
[1724039067990,0.1271751,2650.4,2650.3,52.71301734]
[1724039068190,0.1271751,2650.4,2650.3,16.40087629]
[1724039068410,0.1271751,2650.4,2650.3,15.85087629]
[1724039068713,0.1271751,2650.4,2650.3,14.81266629]
[1724039068910,0.1271751,2650.4,2650.3,12.22192]
[1724039069985,0.19436083,2650.4,2650.3,12.22192]
[1724039070774,0.19436083,2650.4,2650.3,12.77192]
[1724039073105,0.1271751,2650.4,2650.3,12.77192]
[1724039073810,0.1271751,2650.4,2650.3,15.41313]
[1724039074020,0.1271751,2650.4,2650.3,17.21857]
[1724039074198,0.1271751,2650.4,2650.3,19.85978]
[1724039074609,0.1271751,2650.4,2650.3,17.21857]
[1724039074917,0.1271751,2650.4,2650.3,52.21857]
[1724039075619,0.1271751,2650.4,2650.3,54.85978]
[1724039075774,0.1271751,2650.4,2650.3,52.21857]
[1724039078482,0.1271751,2650.4,2650.3,53.53063187]
[1724039078713,0.1271751,2650.4,2650.3,52.21857]
[1724039079212,0.1271751,2650.4,2650.3,54.85978]
[1724039079523,0.1271751,2650.4,2650.3,52.21857]
[1724039080309,0.1271751,2650.4,2650.3,54.85978]
[1724039080718,0.1271751,2650.4,2650.3,52.21857]
[1724039082633,0.1271751,2650.4,2650.3,54.85978]
[1724039083139,0.1271751,2650.4,2650.3,52.21857]
[1724039087232,5.1e-06,2650.4,2650.3,55.36465499]
[1724039087429,18.92176887,2651.4,2651.3,2.64021]
[1724039087629,0.0678633,2651.4,2651.3,4.24321]
[1724039089922,0.0678633,2651.4,2651.3,9.74482]
[1724039090119,0.0678633,2651.4,2651.3,18.02524]
[1724039090446,0.005,2651.5,2651.4,7.92033]
[1724039090646,0.005,2651.5,2651.4,11.47033]
[1724039090847,0.005,2651.5,2651.4,46.47033]
[1724039091319,0.005,2651.5,2651.4,48.95863]
[1724039091519,0.005,2651.5,2651.4,52.36707]
[1724039092950,0.005,2651.5,2651.4,10.08566]
[1724039093149,0.005,2651.5,2651.4,9.88322]
[1724039093503,0.005,2651.5,2651.4,8.28022]
[1724039093704,0.005,2651.5,2651.4,9.88322]
[1724039094216,0.005,2651.5,2651.4,8.28022]
[1724039094836,0.005,2651.5,2651.4,8.83022]
[1724039095044,0.005,2651.5,2651.4,9.977266]
[1724039095933,0.005,2651.5,2651.4,14.907576]
[1724039097849,0.005,2651.5,2651.4,12.617376]
[1724039098255,0.005,2651.5,2651.4,8.28022]
[1724039099512,0.005,2651.5,2651.4,5.64011]
[1724039099716,2.4621,2651.5,2651.2,5.28048]
[1724039100059,2.52289278,2651.5,2651.2,2.64024]
[1724039100427,2.81841846,2651.5,2651.0,2.64047]
[1724039100653,2.81841846,2651.5,2651.0,2.64043]
[1724039101078,2.52289278,2651.5,2651.2,2.64031]
[1724039101215,2.52289278,2651.5,2651.4,2.64011]
[1724039101619,2.52289278,2651.5,2651.4,2.15131]
[1724039101816,4.71059534,2651.5,2651.4,2.15131]
[1724039102270,0.06579278,2651.5,2651.4,2.15131]
[1724039103182,0.06579278,2651.5,2651.3,2.6402]
[1724039103941,0.06579278,2651.5,2651.3,2.64014]
[1724039104335,0.06579278,2651.5,2651.4,5.83022]
[1724039105642,0.06579278,2651.5,2651.4,2.64011]
[1724039106485,0.06579278,2651.5,2651.4,5.83022]
[1724039106669,0.06579278,2651.5,2651.4,3.19011]
[1724039106984,0.06579278,2651.5,2651.4,2.64011]
[1724039107283,0.06579278,2651.5,2651.4,5.28022]
[1724039107525,0.06579278,2651.5,2651.4,5.83022]
[1724039107964,0.06579278,2651.5,2651.4,8.823742]
[1724039108362,0.06579278,2651.5,2651.4,6.413242]
[1724039108562,0.06579278,2651.5,2651.4,5.83022]
[1724039110265,0.06579278,2651.5,2651.4,3.19011]
[1724039110475,0.06579278,2651.5,2651.3,2.64019]
[1724039110793,0.06579278,2651.5,2651.1,8.05086]
[1724039110794,2.53189278,2651.5,2651.1,2.64033]
[1724039110963,2.53189278,2651.5,2651.2,2.6403]
[1724039111166,2.82831846,2651.5,2651.2,2.6403]
[1724039111369,2.82831846,2651.5,2651.1,2.64033]
[1724039111568,2.82831846,2651.5,2651.2,2.64024]
[1724039112860,2.82831846,2651.5,2651.1,2.64033]
[1724039113859,2.82831846,2651.5,2651.0,2.64049]
[1724039114059,0.32606824,2651.4,2651.0,2.64049]
[1724039114399,0.06062486,2651.3,2651.0,2.64049]
[1724039114862,2.4711,2651.5,2651.0,2.64049]
[1724039115059,0.06068801,2651.4,2651.0,2.64049]
[1724039115277,0.06068801,2651.4,2651.1,2.6404]
[1724039115708,0.06068801,2651.4,2650.9,2.64053]
[1724039115902,0.62109921,2651.4,2651.0,3.0]
[1724039116471,0.62109921,2651.4,2650.9,2.64053]
[1724039116855,2.398,2651.2,2650.5,2.64094]
[1724039117078,21.56200887,2651.3,2650.5,2.64094]
[1724039117079,2.64052,2651.0,2650.5,2.64094]
[1724039117294,2.45868413,2650.9,2650.5,2.64094]
[1724039117507,4.86078143,2650.9,2650.5,2.64094]
[1724039117815,4.86078143,2650.9,2650.3,2.64114]
[1724039118017,2.398,2650.8,2650.1,2.64134]
[1724039118216,2.398,2650.8,2649.7,3.27823443]
[1724039118217,3.38793014,2650.8,2650.3,5.28231]
[1724039118517,0.06052675,2650.7,2650.5,2.641]
[1724039118873,2.398,2650.8,2650.3,2.64113]
[1724039119111,0.06046551,2650.7,2650.3,2.64113]
[1724039119271,2.6378,2650.8,2650.3,2.64113]
[1724039119615,0.06046551,2650.7,2650.1,2.64135]
[1724039119791,0.59435306,2650.7,2650.3,2.64118]
[1724039120116,0.06035959,2650.6,2650.3,2.64118]
[1724039120296,18.98212846,2650.6,2650.3,2.64118]
[1724039120697,18.98212846,2650.6,2650.1,2.64133]
[1724039120869,21.19751006,2650.6,2650.2,5.6413]
[1724039121674,21.18176887,2650.5,2649.9,2.64153]
[1724039121924,21.18176887,2650.5,2649.8,2.64164]
[1724039121925,23.4151568,2650.5,2650.0,5.64148]
[1724039124520,23.4151568,2650.5,2649.6,5.28369]
[1724039124521,5.06378,2650.3,2649.6,5.28369]
[1724039124819,21.62317323,2650.2,2649.6,2.64183]
[1724039125182,18.98181323,2650.2,2649.6,2.64183]
[1724039125523,18.98181323,2650.2,2649.7,2.64177]
[1724039125727,2.40455932,2650.1,2649.8,2.6417]
[1724039126074,0.05964059,2650.0,2649.8,5.28334]
[1724039126274,0.05964059,2650.0,2649.8,2.64164]
[1724039126721,0.05964059,2650.0,2649.8,2.64163]
[1724039126936,18.92176887,2650.2,2650.0,2.64145]
[1724039127081,18.92176887,2650.2,2649.8,2.64163]
[1724039127082,0.05952844,2649.9,2649.8,2.64163]
[1724039127283,18.92176887,2650.2,2649.9,2.64158]
[1724039127582,0.059854,2650.1,2649.9,2.64158]
[1724039128676,0.059854,2650.1,2649.7,2.64175]
[1724039128883,0.059854,2650.1,2649.8,2.64164]
[1724039129198,0.059854,2650.1,2649.7,2.64175]
[1724039129404,18.98162287,2650.1,2649.5,0.55]
[1724039129580,18.98162287,2650.1,2649.5,0.869207]
[1724039129782,18.98162287,2650.1,2650.0,2.6415]
[1724039130579,18.98162287,2650.1,2649.9,2.64154]
[1724039131837,21.36542287,2650.1,2649.9,2.64154]
[1724039131994,23.50196516,2650.1,2649.9,2.64154]
[1724039132522,18.98162287,2650.1,2650.0,2.6415]
[1724039134785,0.059854,2650.1,2650.0,7.7416]
[1724039134985,0.059854,2650.1,2650.0,11.2916]
[1724039135223,18.92176887,2650.6,2650.4,2.64101]
[1724039135525,2.4901,2650.9,2650.0,6.0086]
[1724039135526,18.92176887,2650.8,2650.6,2.64083]
[1724039135903,18.92176887,2650.8,2650.5,2.64092]
[1724039136115,2.14118689,2650.7,2650.5,2.64092]
[1724039136927,2.14118689,2650.7,2650.6,2.64091]
[1724039137301,18.92176887,2650.8,2650.5,2.64092]
[1724039138902,2.64031,2651.2,2650.6,5.28182]
[1724039138903,0.05619061,2650.7,2650.6,5.28182]
[1724039139106,0.05619061,2650.7,2650.6,10.95513]
[1724039139619,0.005,2651.5,2651.4,2.64011]
[1724039139914,0.05588841,2651.5,2651.4,2.64011]
[1724039140744,0.05588841,2651.5,2651.4,5.28022]
[1724039140886,0.05588841,2651.5,2651.4,5.83022]
[1724039141632,0.05588841,2651.5,2651.4,2.64011]
[1724039142133,0.05588841,2651.5,2651.2,9.1195]
[1724039142332,0.05588841,2651.5,2651.3,3.1902]
[1724039142535,0.05588841,2651.5,2651.2,6.47923]
[1724039143327,0.05588841,2651.5,2651.2,9.11948]
[1724039143522,0.05588841,2651.5,2651.2,6.47923]
[1724039143722,0.05588841,2651.5,2651.3,2.64019]
[1724039143923,0.05588841,2651.5,2651.4,2.64011]
[1724039146042,0.05588841,2651.5,2651.4,7.66712]
[1724039146339,0.05588841,2651.5,2651.4,14.47027781]
[1724039146527,0.05588841,2651.5,2651.4,49.47027781]
[1724039146845,0.005,2651.5,2651.4,49.47027781]
[1724039147010,0.005,2651.5,2651.4,52.66668125]
[1724039147410,0.005,2651.5,2651.4,15.02657125]
[1724039147610,0.005,2651.5,2651.4,11.21712]
[1724039148549,0.005,2651.5,2651.4,8.83022]
[1724039148899,0.05590957,2651.5,2651.4,6.19011]
[1724039149334,0.05590957,2651.5,2651.4,8.83022]
[1724039149543,0.005,2651.5,2651.4,8.83022]
[1724039149846,0.05597138,2651.5,2651.4,8.83022]
[1724039150198,0.005,2651.5,2651.4,8.83022]
[1724039150398,0.005,2651.5,2651.4,5.64011]
[1724039150597,0.05611362,2651.5,2651.4,5.64011]
[1724039151199,0.05611362,2651.5,2651.2,6.4793]
[1724039151200,0.05611362,2651.5,2651.2,5.28055]
[1724039151354,0.05611362,2651.5,2651.4,2.64011]
[1724039151739,0.05611362,2651.5,2651.3,2.64021]
[1724039151919,0.05611362,2651.5,2651.4,2.64011]
[1724039154354,0.05611362,2651.5,2651.2,5.28048]
[1724039154554,0.05611362,2651.5,2651.3,2.6402]
[1724039154975,0.05611362,2651.5,2651.2,2.64023]
[1724039155337,0.05611362,2651.5,2651.0,2.64049]
[1724039156030,0.61006038,2651.5,2651.0,2.64049]
[1724039156238,0.61006038,2651.5,2650.8,2.64063]
[1724039156435,0.61006038,2651.5,2651.0,2.64044]
[1724039156995,0.61006038,2651.5,2650.8,5.64063]
[1724039156996,2.64017,2651.4,2650.8,5.64063]
[1724039157135,2.64017,2651.4,2650.6,2.64081]
[1724039157136,2.2916,2651.2,2650.6,2.64081]
[1724039158009,2.64041,2651.1,2650.4,2.64104]
[1724039158291,3.133594,2651.1,2650.5,2.64094]
[1724039158497,0.493184,2651.1,2650.6,2.64089]
[1724039159399,0.05066752,2651.0,2650.6,2.64089]
[1724039159697,0.32914592,2651.0,2650.6,2.64089]
[1724039159877,0.32914592,2651.0,2650.4,2.64102]
[1724039160199,0.32914592,2651.0,2650.6,2.64088]
[1724039160495,0.05066752,2651.0,2650.6,2.64088]
[1724039161056,0.05066752,2651.0,2650.8,2.6407]
[1724039161766,2.2916,2651.2,2650.8,2.6407]
[1724039161966,0.05061575,2650.9,2650.8,2.6407]
[1724039162152,2.4899,2651.5,2651.0,2.64042]
[1724039163075,0.005,2651.5,2651.2,2.6403]
[1724039163404,0.005,2651.5,2651.2,2.64024]
[1724039163968,0.005,2651.5,2651.2,2.64023]
[1724039164703,0.005,2651.5,2651.4,2.64011]
[1724039165484,0.05417591,2651.5,2651.4,2.64011]
[1724039167097,0.05417591,2651.5,2651.3,2.6402]
[1724039167418,0.05417591,2651.5,2651.4,2.64011]
[1724039168200,0.05417591,2651.5,2651.3,2.64014]
[1724039170003,0.05417591,2651.5,2651.3,5.28028]
[1724039170385,2.3105,2651.4,2650.4,2.2681]
[1724039170585,0.23646759,2651.3,2650.7,2.6408]
[1724039170808,2.3105,2651.1,2650.2,6.1071]
[1724039170993,2.3105,2651.1,2650.4,2.64102]
[1724039170994,0.23105,2651.0,2650.4,2.64102]
[1724039171196,0.04872104,2651.0,2650.5,2.64094]
[1724039171892,0.04872104,2651.0,2650.2,4.90936]
[1724039171893,0.04872104,2651.0,2650.3,2.64115]
[1724039172119,0.04872104,2651.0,2650.2,4.90936]
[1724039172120,2.64078,2650.8,2650.2,2.64126]
[1724039172334,2.3105,2650.7,2650.2,2.64126]
[1724039172611,2.3590743,2650.7,2650.2,2.64126]
[1724039172813,2.85905973,2650.7,2649.7,0.52374143]
[1724039173014,2.64098,2650.6,2650.0,2.64145]
[1724039173319,2.4453,2650.4,2649.4,2.64201]
[1724039173514,2.4453,2650.4,2649.8,2.64163]
[1724039173782,0.04641846,2650.3,2649.8,2.64163]
[1724039173939,2.64137,2650.2,2649.5,5.2839]
[1724039174090,2.68789411,2650.2,2649.5,2.64194]
[1724039174819,2.68789411,2650.2,2649.6,2.64189]
[1724039175406,2.64151,2650.0,2649.3,2.64213]
[1724039175795,0.04637732,2649.9,2649.3,2.64213]
[1724039176496,0.04637732,2649.9,2648.9,2.3674]
[1724039176497,5.01811,2649.8,2648.9,2.64253]
[1724039176719,5.01811,2649.8,2649.0,2.64243]
[1724039176720,3.14825873,2649.7,2649.0,2.64243]
[1724039176935,3.19442097,2649.7,2649.0,2.64243]
[1724039177254,2.3764,2649.4,2648.6,2.64281]
[1724039177572,0.8212531,2649.6,2648.9,2.64251]
[1724039177856,5.01821,2649.7,2649.1,2.64239]
[1724039178014,0.04602076,2649.5,2649.1,2.64239]
[1724039178213,0.04608398,2649.6,2649.1,2.64239]
[1724039178443,3.142386,2649.7,2649.1,2.64239]
[1724039178633,2.3764,2649.7,2649.3,2.64214]
[1724039178831,2.64163,2649.9,2649.3,2.64214]
[1724039179035,0.04605938,2649.6,2649.3,2.64214]
[1724039179363,0.04596764,2649.5,2649.3,2.64214]
[1724039179520,2.485,2649.4,2648.9,2.64258]
[1724039179714,0.04584117,2649.3,2648.9,2.64258]
[1724039181139,0.04584117,2649.3,2648.8,2.6427]
[1724039184119,5.12711,2649.4,2648.8,2.6427]
[1724039184521,4.91194,2649.7,2649.0,2.64243]
[1724039184741,4.91194,2649.7,2648.5,6.48196]
[1724039184742,0.0459451,2649.6,2648.5,6.48196]
[1724039184944,0.0459451,2649.6,2648.6,4.35945125]
[1724039185148,0.0459451,2649.6,2649.0,2.64246]
[1724039185444,2.6878551,2649.6,2649.0,2.64246]
[1724039185781,0.0459451,2649.6,2649.0,2.64246]
[1724039186585,0.59085301,2649.6,2649.0,2.64246]
[1724039186789,0.0459451,2649.6,2649.1,2.64239]
[1724039187135,0.0459451,2649.6,2649.0,2.64246]
[1724039187136,4.91194,2649.7,2649.0,2.64243]
[1724039187482,0.04575619,2649.6,2649.0,2.64243]
[1724039187663,2.64209,2649.5,2648.8,2.64266]
[1724039187982,0.04562972,2649.4,2648.9,2.64259]
[1724039188146,0.04562972,2649.4,2649.0,2.64248]
[1724039188351,2.64192,2649.6,2649.0,2.64248]
[1724039188546,0.04569296,2649.5,2649.0,2.64248]
[1724039191092,2.3513,2649.3,2648.5,2.64297]
[1724039191304,2.3513,2649.3,2648.7,2.64277]
[1724039191459,0.0455244,2649.2,2648.5,2.6429]
[1724039191801,2.6426,2648.9,2648.3,2.64318]
[1724039192107,2.64281,2648.7,2648.0,2.64341]
[1724039192250,0.04512773,2648.6,2647.8,2.64366]
[1724039192753,0.04512773,2648.6,2647.4,2.2624]
[1724039192754,2.3513,2648.4,2647.4,2.2624]
[1724039192955,2.64328,2648.3,2647.6,2.64382]
[1724039193261,0.04491983,2648.2,2648.0,2.64343]
[1724039193454,4.99411,2648.7,2648.1,0.264343]
[1724039193701,4.99411,2648.7,2648.0,2.64343]
[1724039193702,2.68809372,2648.6,2648.0,2.64343]
[1724039194010,2.643,2648.5,2647.9,2.64353]
[1724039194316,0.04506716,2648.4,2647.9,2.64353]
[1724039194595,3.41119037,2648.6,2647.9,2.64353]
[1724039194799,3.21924304,2648.5,2647.8,2.64363]
[1724039194970,3.26437348,2648.5,2647.8,2.64363]
[1724039195172,3.26437348,2648.5,2647.8,5.28725]
[1724039195898,3.26437348,2648.5,2647.9,2.64358]
[1724039196491,2.68814044,2648.5,2647.9,2.64358]
[1724039196721,2.68814044,2648.5,2647.6,2.2624]
[1724039196722,2.6432,2648.3,2647.6,2.64387]
[1724039196926,0.04494058,2648.2,2647.6,2.64387]
[1724039197983,2.33994058,2648.2,2647.7,2.64379]
[1724039199130,2.33994058,2648.2,2647.3,2.64415]
[1724039199131,2.295,2648.0,2647.3,2.64415]
[1724039199331,2.295,2648.0,2647.0,2.64447]
[1724039199332,2.68844067,2647.9,2647.2,2.64421]
[1724039199498,2.68844067,2647.9,2646.9,2.64458]
[1724039199499,2.64401,2647.5,2646.9,2.64458]
[1724039199700,2.3395275,2647.4,2646.7,2.6448]
[1724039199899,2.6443,2647.2,2646.5,2.64493]
[1724039200079,2.6443,2647.2,2646.5,5.28984]
[1724039200080,0.04427523,2647.1,2646.5,5.28984]
[1724039200290,0.04427523,2647.1,2646.5,2.64491]
[1724039202619,0.04427523,2647.1,2646.6,2.64489]
[1724039202944,0.04427523,2647.1,2647.0,2.6445]
[1724039203103,0.04427523,2647.1,2646.9,2.64458]
[1724039203426,0.04398459,2647.0,2646.9,2.64458]
[1724039203829,2.8704,2647.6,2646.9,2.64458]
[1724039204078,0.04398459,2647.0,2646.9,2.64458]
[1724039204241,2.8704,2647.6,2646.9,2.64458]
[1724039204442,0.04398938,2647.0,2646.9,2.64458]
[1724039204648,2.8704,2647.6,2646.9,2.64458]
[1724039204957,0.51347,2647.5,2646.9,2.64458]
[1724039205775,0.51347,2647.5,2647.1,2.64439]
[1724039205946,0.22643,2647.6,2647.1,2.64433]
[1724039206276,0.22643,2647.6,2647.2,2.64422]
[1724039206676,0.04433414,2647.5,2647.2,2.64422]
[1724039206842,0.04433414,2647.5,2647.3,2.64419]
[1724039207246,2.2643,2647.7,2647.3,2.64419]
[1724039207541,2.2643,2647.7,2647.1,5.28865]
[1724039207542,2.755095,2647.7,2647.1,5.28865]
[1724039207772,0.044405,2647.6,2647.1,2.64432]
[1724039207973,0.044405,2647.6,2647.3,2.64419]
[1724039208195,0.044405,2647.6,2647.5,2.644]
[1724039208557,2.2702,2648.0,2647.5,2.644]
[1724039208759,0.0446929,2647.9,2647.6,2.6438]
[1724039209191,0.0446929,2647.9,2647.6,2.90818]
[1724039209395,0.0446929,2647.9,2647.8,2.6437]
[1724039209563,7.5565,2648.4,2647.7,2.6438]
[1724039209776,2.68785614,2648.3,2647.7,2.6438]
[1724039210229,2.2702,2648.2,2646.8,2.3792]
[1724039210364,2.2702,2647.5,2646.8,2.64469]
[1724039210564,0.04424065,2647.4,2646.8,2.64462]